{"text_format":"3","workbook":"xlsx","n_sheets":2,"sheets":["Informācija par solītajām cenām","Kopsavilkums"],"not_rendered":{"charts":1,"images":1,"defined_names":4,"pivot_tables":1},"read":"whole","date_system":"1900"}

{"sheet":"Informācija par solītajām cenām","index":0,"n_rows":9,"n_cols":8,"rows_kept":9}
[null,"Informācija par solītajām cenām",{"$nulls":5},"Kopsavilkums"]
[null,"SOLĪTĀS CENAS NR.","APRAKSTS","SAŅEMŠANAS DATUMS","SUMMA","IZPILDES LAIKS PROCENTOS","TERMIŅŠ","ATLIKUŠĀS DIENAS"]
[null,1,"Solītā cena 1",{"$f":"TODAY()-10","v":"2017-07-09"},{"v":2000,"d":"2,000.00 EUR"},{"v":0.5,"d":"50%"},{"$f":"Informācija_par_solīto_cenu[[#This Row],[SAŅEMŠANAS DATUMS]]+30","v":"2017-08-08"},{"$f":"Informācija_par_solīto_cenu[[#This Row],[TERMIŅŠ]]-TODAY()","v":20}]
[null,2,"Solītā cena 2",{"$f":"TODAY()-20","v":"2017-06-29"},{"v":3500,"d":"3,500.00 EUR"},{"v":0.25,"d":"25%"},{"$f":"Informācija_par_solīto_cenu[[#This Row],[SAŅEMŠANAS DATUMS]]+30","v":"2017-07-29"},{"$f":"Informācija_par_solīto_cenu[[#This Row],[TERMIŅŠ]]-TODAY()","v":10}]
[null,3,"Solītā cena 3",{"$f":"TODAY()-20","v":"2017-06-29"},{"v":5000,"d":"5,000.00 EUR"},{"v":0.3,"d":"30%"},{"$f":"Informācija_par_solīto_cenu[[#This Row],[SAŅEMŠANAS DATUMS]]+30","v":"2017-07-29"},{"$f":"Informācija_par_solīto_cenu[[#This Row],[TERMIŅŠ]]-TODAY()","v":10}]
[null,4,"Solītā cena 4",{"$f":"TODAY()-10","v":"2017-07-09"},{"v":4000,"d":"4,000.00 EUR"},{"v":0.2,"d":"20%"},{"$f":"Informācija_par_solīto_cenu[[#This Row],[SAŅEMŠANAS DATUMS]]+30","v":"2017-08-08"},{"$f":"Informācija_par_solīto_cenu[[#This Row],[TERMIŅŠ]]-TODAY()","v":20}]
[null,5,"Solītā cena 5",{"$f":"TODAY()-28","v":"2017-06-21"},{"v":4000,"d":"4,000.00 EUR"},{"v":0.75,"d":"75%"},{"$f":"Informācija_par_solīto_cenu[[#This Row],[SAŅEMŠANAS DATUMS]]+30","v":"2017-07-21"},{"$f":"Informācija_par_solīto_cenu[[#This Row],[TERMIŅŠ]]-TODAY()","v":2}]
[null,6,"Solītā cena 6",{"$f":"TODAY()-17","v":"2017-07-02"},{"v":1500,"d":"1,500.00 EUR"},{"v":0.45,"d":"45%"},{"$f":"Informācija_par_solīto_cenu[[#This Row],[SAŅEMŠANAS DATUMS]]+30","v":"2017-08-01"},{"$f":"Informācija_par_solīto_cenu[[#This Row],[TERMIŅŠ]]-TODAY()","v":13}]
[null,7,"Solītā cena 7",{"$f":"TODAY()-15","v":"2017-07-04"},{"v":5000,"d":"5,000.00 EUR"},{"v":0.65,"d":"65%"},{"$f":"Informācija_par_solīto_cenu[[#This Row],[SAŅEMŠANAS DATUMS]]+30","v":"2017-08-03"},{"$f":"Informācija_par_solīto_cenu[[#This Row],[TERMIŅŠ]]-TODAY()","v":15}]

{"sheet":"Kopsavilkums","index":1,"n_rows":10,"n_cols":6,"rows_kept":10}
[null,"Līdz izsolēm atlikušās dienas",{"$nulls":3},"Informācija par solītajām cenām"]
[]
[null,null,"SOLĪTĀS CENAS NR."," ATLIKUŠĀS DIENAS"]
[null,null,1,20]
[null,null,2,10]
[null,null,3,10]
[null,null,4,20]
[null,null,5,2]
[null,null,6,13]
[null,null,7,15]